[Event "*** Titled Tuesday Blitz"]
[Site "Chess.com"]
[Date "2020.12.29"]
[Round "4"]
[White "TokChess"]
[Black "tdf98pantani"]
[Result "0-1"]
[WhiteElo "2472"]
[BlackElo "2656"]
[TimeControl "180+1"]
[EndTime "10:40:04 PST"]
[Termination "tdf98pantani won on time"]

1. d4 {[%clk 0:03:00.9]} 1... d5 {[%clk 0:02:58]} 2. Bf4 {[%clk 0:03:00.9]} 2...
c5 {[%clk 0:02:57.4]} 3. e3 {[%clk 0:02:59]} 3... Nc6 {[%clk 0:02:53.9]} 4. c3
{[%clk 0:02:58.9]} 4... e6 {[%clk 0:02:53.2]} 5. Nd2 {[%clk 0:02:58.3]} 5... Bd6
{[%clk 0:02:53.3]} 6. Bg3 {[%clk 0:02:52.9]} 6... Nge7 {[%clk 0:02:52]} 7. Ngf3
{[%clk 0:02:52.7]} 7... O-O {[%clk 0:02:51.2]} 8. Bd3 {[%clk 0:02:52.4]} 8... b6
{[%clk 0:02:50.1]} 9. Qe2 {[%clk 0:02:52.2]} 9... f5 {[%clk 0:02:43.9]} 10. Ne5
{[%clk 0:02:50.5]} 10... c4 {[%clk 0:02:42.6]} 11. Bc2 {[%clk 0:02:49]} 11...
Nxe5 {[%clk 0:02:26.4]} 12. dxe5 {[%clk 0:02:46.8]} 12... Bc5 {[%clk 0:02:23.5]}
13. Nf3 {[%clk 0:02:47.1]} 13... b5 {[%clk 0:02:21.3]} 14. Nd4 {[%clk
0:02:45.8]} 14... Qb6 {[%clk 0:02:19.6]} 15. O-O {[%clk 0:02:39.5]} 15... Bd7
{[%clk 0:02:18.5]} 16. Bh4 {[%clk 0:02:34.4]} 16... Ng6 {[%clk 0:02:17.6]} 17.
Bg3 {[%clk 0:02:33.1]} 17... b4 {[%clk 0:02:15.5]} 18. cxb4 {[%clk 0:02:25.2]}
18... Qxb4 {[%clk 0:02:13.5]} 19. Rab1 {[%clk 0:02:21.7]} 19... Qa5 {[%clk
0:01:43.3]} 20. a3 {[%clk 0:02:05.1]} 20... Bxd4 {[%clk 0:01:36.1]} 21. exd4
{[%clk 0:02:03.4]} 21... Ba4 {[%clk 0:01:34]} 22. h4 {[%clk 0:01:47.3]} 22...
Bxc2 {[%clk 0:01:31.6]} 23. Qxc2 {[%clk 0:01:47.9]} 23... f4 {[%clk 0:01:31.6]}
24. h5 {[%clk 0:01:48.4]} 24... Ne7 {[%clk 0:01:29.5]} 25. Bh2 {[%clk
0:01:46.4]} 25... Nf5 {[%clk 0:01:25]} 26. Rbd1 {[%clk 0:01:44.8]} 26... Qb6
{[%clk 0:01:19.1]} 27. Qc3 {[%clk 0:01:34.2]} 27... Rab8 {[%clk 0:01:16.8]} 28.
Rd2 {[%clk 0:01:31.8]} 28... Nh6 {[%clk 0:01:03.7]} 29. Qh3 {[%clk 0:01:11.4]}
29... Rf5 {[%clk 0:01:01.1]} 30. g4 {[%clk 0:01:02.8]} 30... fxg3 {[%clk
0:00:58.1]} 31. Bxg3 {[%clk 0:01:01.2]} 31... Qb3 {[%clk 0:00:56.4]} 32. Qh4
{[%clk 0:00:54.6]} 32... Rf7 {[%clk 0:00:51.1]} 33. Rc1 {[%clk 0:00:50.8]} 33...
Nf5 {[%clk 0:00:49.8]} 34. Qg4 {[%clk 0:00:50.7]} 34... Qa2 {[%clk 0:00:44.9]}
35. Qg5 {[%clk 0:00:25.8]} 35... Qb3 {[%clk 0:00:33.3]} 36. Rc3 {[%clk
0:00:22.8]} 36... Qb7 {[%clk 0:00:32.9]} 37. Rf3 {[%clk 0:00:15.8]} 37... Qe7
{[%clk 0:00:31.8]} 38. Qg4 {[%clk 0:00:15.7]} 38... a5 {[%clk 0:00:25]} 39. Kg2
{[%clk 0:00:15.8]} 39... a4 {[%clk 0:00:25.3]} 40. Bf4 {[%clk 0:00:14.1]} 40...
Rb3 {[%clk 0:00:23.6]} 41. Bg5 {[%clk 0:00:11.8]} 41... Qe8 {[%clk 0:00:23.6]}
42. Rxb3 {[%clk 0:00:11.5]} 42... axb3 {[%clk 0:00:23]} 43. f4 {[%clk
0:00:11.7]} 43... Qc6 {[%clk 0:00:21.9]} 44. h6 {[%clk 0:00:11.9]} 44... c3
{[%clk 0:00:20.6]} 45. bxc3 {[%clk 0:00:12.2]} 45... Qxc3 {[%clk 0:00:20.8]} 46.
Qe2 {[%clk 0:00:12.3]} 46... Ne3+ {[%clk 0:00:19.2]} 47. Kh2 {[%clk 0:00:10.9]}
47... Nc4 {[%clk 0:00:19]} 48. Rd1 {[%clk 0:00:08.1]} 48... b2 {[%clk
0:00:18.6]} 49. Rb1 {[%clk 0:00:07.5]} 49... Rb7 {[%clk 0:00:17.1]} 50. Qd1
{[%clk 0:00:05.8]} 50... Nxa3 {[%clk 0:00:15.7]} 51. Qa4 {[%clk 0:00:04.3]}
51... Qc2+ {[%clk 0:00:16.1]} 52. Qxc2 {[%clk 0:00:04.2]} 52... Nxc2 {[%clk
0:00:17]} 53. f5 {[%clk 0:00:03.7]} 53... exf5 {[%clk 0:00:14.5]} 54. e6 {[%clk
0:00:03.5]} 54... Na3 {[%clk 0:00:14.2]} 55. e7 {[%clk 0:00:03.1]} 55... Kf7
{[%clk 0:00:13.4]} 56. hxg7 {[%clk 0:00:02.1]} 56... Rb8 {[%clk 0:00:12.8]} 57.
Rxb2 {[%clk 0:00:01.4]} 57... Rxb2+ {[%clk 0:00:13]} 58. Kh3 {[%clk 0:00:01.7]}
58... Rb8 {[%clk 0:00:13.9]} 59. Kh4 {[%clk 0:00:01.9]} 59... Re8 {[%clk
0:00:13.9]} 60. Kh5 {[%clk 0:00:01.8]} 60... Kxg7 {[%clk 0:00:14.2]} 0-1

[Event "*** Titled Tuesday Blitz"]
[Site "Chess.com"]
[Date "2020.12.29"]
[Round "4"]
[White "jacky72"]
[Black "tvjosue"]
[Result "1/2-1/2"]
[WhiteElo "2793"]
[BlackElo "2533"]
[TimeControl "180+1"]
[EndTime "10:40:05 PST"]
[Termination "Game drawn - insufficient material"]

1. d4 {[%clk 0:03:00.9]} 1... Nf6 {[%clk 0:02:54.8]} 2. c4 {[%clk 0:03:01.3]}
2... e6 {[%clk 0:02:54.7]} 3. Nf3 {[%clk 0:03:01.7]} 3... b6 {[%clk 0:02:54.1]}
4. g3 {[%clk 0:03:01.5]} 4... Ba6 {[%clk 0:02:53.9]} 5. Qc2 {[%clk 0:03:01.2]}
5... c6 {[%clk 0:02:53.1]} 6. Bg2 {[%clk 0:03:00.9]} 6... d5 {[%clk 0:02:53.1]}
7. cxd5 {[%clk 0:03:01.4]} 7... cxd5 {[%clk 0:02:52.7]} 8. O-O {[%clk
0:03:01.9]} 8... Nbd7 {[%clk 0:02:52.7]} 9. Nc3 {[%clk 0:03:01.9]} 9... Bb4
{[%clk 0:02:48.5]} 10. Qa4 {[%clk 0:02:59]} 10... Bxc3 {[%clk 0:02:42.9]} 11.
Qxa6 {[%clk 0:02:59.4]} 11... Ba5 {[%clk 0:02:37]} 12. Bf4 {[%clk 0:02:59.6]}
12... Qc8 {[%clk 0:02:35.1]} 13. Qb5 {[%clk 0:02:58.1]} 13... a6 {[%clk
0:02:33.4]} 14. Qa4 {[%clk 0:02:58]} 14... Qc4 {[%clk 0:02:28.1]} 15. Qd1 {[%clk
0:02:58]} 15... O-O {[%clk 0:02:23.6]} 16. a3 {[%clk 0:02:47.5]} 16... b5 {[%clk
0:02:19.9]} 17. Rc1 {[%clk 0:02:47.9]} 17... Qa2 {[%clk 0:02:18.9]} 18. Rc2
{[%clk 0:02:30.7]} 18... Rfc8 {[%clk 0:02:14.8]} 19. Qc1 {[%clk 0:02:26.7]}
19... Rc4 {[%clk 0:02:11.4]} 20. Rxc4 {[%clk 0:02:14.9]} 20... bxc4 {[%clk
0:02:11.6]} 21. Ne5 {[%clk 0:01:51.3]} 21... Qb3 {[%clk 0:01:55.3]} 22. Nxd7
{[%clk 0:01:47.7]} 22... Nxd7 {[%clk 0:01:56.2]} 23. e4 {[%clk 0:01:48.6]} 23...
dxe4 {[%clk 0:01:53]} 24. Bxe4 {[%clk 0:01:49.5]} 24... Rc8 {[%clk 0:01:53.2]}
25. d5 {[%clk 0:01:42.1]} 25... exd5 {[%clk 0:01:47.6]} 26. Bxd5 {[%clk
0:01:42.1]} 26... Nf6 {[%clk 0:01:48.1]} 27. Bg2 {[%clk 0:01:39.2]} 27... c3
{[%clk 0:01:44.9]} 28. bxc3 {[%clk 0:01:38.1]} 28... Qxc3 {[%clk 0:01:38.8]} 29.
Qb1 {[%clk 0:01:28.5]} 29... Qxa3 {[%clk 0:01:30.8]} 30. Qb7 {[%clk 0:01:28.4]}
30... Rf8 {[%clk 0:01:30.9]} 31. Qxa6 {[%clk 0:01:27.3]} 31... Bb4 {[%clk
0:01:31.5]} 32. Qb7 {[%clk 0:01:25.4]} 32... Bd6 {[%clk 0:01:29.2]} 33. Bg5
{[%clk 0:01:23.2]} 33... Ng4 {[%clk 0:01:27.6]} 34. Bd5 {[%clk 0:01:20.4]} 34...
Bc5 {[%clk 0:01:06.6]} 35. Qd7 {[%clk 0:01:05.8]} 35... h5 {[%clk 0:00:18.6]}
36. Qf5 {[%clk 0:01:01.1]} 36... Qc3 {[%clk 0:00:15.7]} 37. Bf3 {[%clk
0:00:53.8]} 37... Nxf2 {[%clk 0:00:12.2]} 38. Kg2 {[%clk 0:00:46.4]} 38... Ng4
{[%clk 0:00:09.9]} 39. Bxg4 {[%clk 0:00:46]} 39... hxg4 {[%clk 0:00:10.8]} 40.
Qxg4 {[%clk 0:00:46.6]} 40... Qd3 {[%clk 0:00:09.7]} 41. Rf5 {[%clk 0:00:35.2]}
41... Bd4 {[%clk 0:00:07.4]} 42. Kh3 {[%clk 0:00:33.6]} 42... g6 {[%clk
0:00:06.3]} 43. Rf4 {[%clk 0:00:32.9]} 43... Be3 {[%clk 0:00:06.1]} 44. Rf3
{[%clk 0:00:31.4]} 44... f5 {[%clk 0:00:06.1]} 45. Qa4 {[%clk 0:00:20.1]} 45...
Qe2 {[%clk 0:00:06.4]} 46. Qb3+ {[%clk 0:00:18.8]} 46... Rf7 {[%clk 0:00:03.5]}
47. Qxe3 {[%clk 0:00:18.7]} 47... Rh7+ {[%clk 0:00:03.4]} 48. Bh4 {[%clk
0:00:17.8]} 48... Qxe3 {[%clk 0:00:03.7]} 49. Rxe3 {[%clk 0:00:18]} 49... g5
{[%clk 0:00:04.6]} 50. Re8+ {[%clk 0:00:13.2]} 50... Kf7 {[%clk 0:00:04.4]} 51.
Ra8 {[%clk 0:00:13.6]} 51... gxh4 {[%clk 0:00:03.9]} 52. Ra7+ {[%clk 0:00:13.8]}
52... Kg6 {[%clk 0:00:04.8]} 53. Rxh7 {[%clk 0:00:14.2]} 53... Kxh7 {[%clk
0:00:05.7]} 54. Kxh4 {[%clk 0:00:14.9]} 54... Kg6 {[%clk 0:00:06.6]} 55. Kh3
{[%clk 0:00:15.1]} 55... Kg5 {[%clk 0:00:06.7]} 56. Kg2 {[%clk 0:00:15.5]} 56...
f4 {[%clk 0:00:07.1]} 57. h4+ {[%clk 0:00:15.5]} 57... Kg4 {[%clk 0:00:07.1]}
58. h5 {[%clk 0:00:13.7]} 58... Kxh5 {[%clk 0:00:06.3]} 59. gxf4 {[%clk
0:00:14.3]} 59... Kg4 {[%clk 0:00:06.8]} 60. f5 {[%clk 0:00:15.2]} 60... Kxf5
{[%clk 0:00:07]} 1/2-1/2

[Event "*** Titled Tuesday Blitz"]
[Site "Chess.com"]
[Date "2020.12.29"]
[Round "4"]
[White "petrpalachev"]
[Black "wonderfultime"]
[Result "1-0"]
[WhiteElo "2719"]
[BlackElo "3005"]
[TimeControl "180+1"]
[EndTime "10:40:06 PST"]
[Termination "petrpalachev won on time"]

1. d4 {[%clk 0:03:00.9]} 1... d5 {[%clk 0:03:00.2]} 2. Nf3 {[%clk 0:03:01.8]}
2... Nf6 {[%clk 0:03:00.4]} 3. Bf4 {[%clk 0:03:01.4]} 3... e6 {[%clk 0:03:00.5]}
4. e3 {[%clk 0:03:01.4]} 4... Bd6 {[%clk 0:03:01.1]} 5. Nbd2 {[%clk 0:03:01.3]}
5... O-O {[%clk 0:03:00.8]} 6. Bd3 {[%clk 0:03:01.1]} 6... c5 {[%clk 0:03:01.4]}
7. c3 {[%clk 0:03:00.9]} 7... Nc6 {[%clk 0:02:55.7]} 8. Bg3 {[%clk 0:03:00.4]}
8... b6 {[%clk 0:02:46]} 9. Qe2 {[%clk 0:02:58.7]} 9... Re8 {[%clk 0:02:24.6]}
10. Ne5 {[%clk 0:02:54.5]} 10... Bxe5 {[%clk 0:02:16.9]} 11. dxe5 {[%clk
0:02:55.4]} 11... Nd7 {[%clk 0:02:17.5]} 12. f4 {[%clk 0:02:46.2]} 12... Bb7
{[%clk 0:02:08.6]} 13. O-O {[%clk 0:02:44.5]} 13... Ne7 {[%clk 0:01:42.2]} 14.
Rad1 {[%clk 0:02:42.3]} 14... Qc8 {[%clk 0:01:33.5]} 15. e4 {[%clk 0:02:39.9]}
15... c4 {[%clk 0:01:01.5]} 16. Bc2 {[%clk 0:02:38.6]} 16... b5 {[%clk
0:01:01.8]} 17. a3 {[%clk 0:02:33.6]} 17... Nc5 {[%clk 0:00:59.4]} 18. exd5
{[%clk 0:02:19.4]} 18... Bxd5 {[%clk 0:00:59.1]} 19. Bf2 {[%clk 0:02:19.9]}
19... Qc6 {[%clk 0:00:57.1]} 20. Bxc5 {[%clk 0:02:14.6]} 20... Qxc5+ {[%clk
0:00:58]} 21. Qf2 {[%clk 0:02:15.2]} 21... Qxf2+ {[%clk 0:00:49.8]} 22. Kxf2
{[%clk 0:02:16.1]} 22... Red8 {[%clk 0:00:50.7]} 23. Ne4 {[%clk 0:02:14.7]}
23... Rab8 {[%clk 0:00:42.5]} 24. Nd6 {[%clk 0:02:14.3]} 24... Nc8 {[%clk
0:00:40.7]} 25. Nxc8 {[%clk 0:02:11.3]} 25... Rbxc8 {[%clk 0:00:39.9]} 26. Rd2
{[%clk 0:02:11.1]} 26... g6 {[%clk 0:00:37.8]} 27. Rfd1 {[%clk 0:02:10.8]} 27...
Re8 {[%clk 0:00:24.6]} 28. Ke3 {[%clk 0:02:10.1]} 28... a5 {[%clk 0:00:19.8]}
29. g4 {[%clk 0:02:09.3]} 29... b4 {[%clk 0:00:19]} 30. axb4 {[%clk 0:02:01.5]}
30... axb4 {[%clk 0:00:19.9]} 31. Ra1 {[%clk 0:02:01.9]} 31... Rb8 {[%clk
0:00:17.2]} 32. f5 {[%clk 0:01:58.6]} 32... bxc3 {[%clk 0:00:12]} 33. bxc3
{[%clk 0:01:58.5]} 33... Rb2 {[%clk 0:00:10.7]} 34. Kf4 {[%clk 0:01:48.2]} 34...
exf5 {[%clk 0:00:05.6]} 35. gxf5 {[%clk 0:01:47.4]} 35... Bc6 {[%clk 0:00:06.1]}
36. f6 {[%clk 0:01:36.6]} 36... g5+ {[%clk 0:00:02.2]} 37. Kxg5 {[%clk
0:01:36.9]} 37... Rxe5+ {[%clk 0:00:02.5]} 38. Kh6 {[%clk 0:01:34.1]} 38... Kf8
{[%clk 0:00:02.8]} 39. Rb1 {[%clk 0:01:22.9]} 39... Rxb1 {[%clk 0:00:02.4]} 40.
Bxb1 {[%clk 0:01:23.8]} 40... Re3 {[%clk 0:00:02.6]} 41. h4 {[%clk 0:01:20.2]}
41... Rxc3 {[%clk 0:00:02]} 42. Rd6 {[%clk 0:01:18.9]} 42... Be8 {[%clk
0:00:02.3]} 43. Bxh7 {[%clk 0:01:15.7]} 43... Rh3 {[%clk 0:00:02.5]} 44. h5
{[%clk 0:01:15.1]} 44... c3 {[%clk 0:00:02.9]} 45. Rd8 {[%clk 0:01:05.5]} 45...
Re3 {[%clk 0:00:02.9]} 46. Rc8 {[%clk 0:01:05.3]} 46... Re6 {[%clk 0:00:02.4]}
47. Kg5 {[%clk 0:01:03.2]} 47... Re3 {[%clk 0:00:02.5]} 48. Bf5 {[%clk
0:01:02.2]} 48... Re5 {[%clk 0:00:01.9]} 49. h6 {[%clk 0:01:01.2]} 49... Kg8
{[%clk 0:00:01.5]} 50. h7+ {[%clk 0:00:52.1]} 50... Kh8 {[%clk 0:00:01.8]} 51.
Kf4 {[%clk 0:00:52.7]} 51... Re1 {[%clk 0:00:01.8]} 52. Rxc3 {[%clk 0:00:50.5]}
52... Rf1+ {[%clk 0:00:02.1]} 53. Ke5 {[%clk 0:00:50.1]} 53... Re1+ {[%clk
0:00:02.6]} 54. Kd6 {[%clk 0:00:49.9]} 54... Ba4 {[%clk 0:00:02.2]} 55. Rc8+
{[%clk 0:00:48.4]} 55... Re8 {[%clk 0:00:02.3]} 56. Rxe8+ {[%clk 0:00:45.4]}
56... Bxe8 {[%clk 0:00:03.2]} 57. Ke7 {[%clk 0:00:45.7]} 57... Ba4 {[%clk
0:00:03.3]} 58. Bg6 {[%clk 0:00:40.1]} 58... Bb3 {[%clk 0:00:02]} 59. Bxf7
{[%clk 0:00:40]} 59... Bc2 {[%clk 0:00:02.6]} 60. Bg8 {[%clk 0:00:20.1]} 60...
Bg6 {[%clk 0:00:02.6]} 61. Kf8 {[%clk 0:00:20.4]} 61... Bh5 {[%clk 0:00:02.1]}
62. Bf7 {[%clk 0:00:19.5]} 62... Be2 {[%clk 0:00:01.5]} 63. Bg6 {[%clk
0:00:19.8]} 63... Bc4 {[%clk 0:00:01.9]} 64. Ke7 {[%clk 0:00:20.1]} 64... Bb3
{[%clk 0:00:02.1]} 65. Bf5 {[%clk 0:00:19.3]} 1-0

[Event "*** Titled Tuesday Blitz"]
[Site "Chess.com"]
[Date "2020.12.29"]
[Round "4"]
[White "WinOrTilt"]
[Black "Triumphmate"]
[Result "1-0"]
[WhiteElo "2153"]
[BlackElo "2383"]
[TimeControl "180+1"]
[EndTime "10:40:06 PST"]
[Termination "WinOrTilt won by resignation"]

1. d4 {[%clk 0:03:00.2]} 1... d5 {[%clk 0:02:59.4]} 2. Nf3 {[%clk 0:03:00.7]}
2... e6 {[%clk 0:02:59.2]} 3. e3 {[%clk 0:03:01.6]} 3... Be7 {[%clk 0:02:59.7]}
4. Ne5 {[%clk 0:03:01.2]} 4... Nd7 {[%clk 0:02:58]} 5. Bd3 {[%clk 0:03:00.9]}
5... Nxe5 {[%clk 0:02:56]} 6. dxe5 {[%clk 0:03:01.8]} 6... c5 {[%clk 0:02:56.9]}
7. c3 {[%clk 0:03:00]} 7... f5 {[%clk 0:02:57.5]} 8. exf6 {[%clk 0:02:58]} 8...
Nxf6 {[%clk 0:02:57.7]} 9. O-O {[%clk 0:02:57.8]} 9... O-O {[%clk 0:02:58.2]}
10. Nd2 {[%clk 0:02:58.3]} 10... Bd6 {[%clk 0:02:49.4]} 11. f4 {[%clk
0:02:57.4]} 11... e5 {[%clk 0:02:49]} 12. fxe5 {[%clk 0:02:48.9]} 12... Bxe5
{[%clk 0:02:49.9]} 13. Nf3 {[%clk 0:02:48.5]} 13... Bd6 {[%clk 0:02:46.2]} 14.
c4 {[%clk 0:02:47.6]} 14... Be6 {[%clk 0:02:42.4]} 15. cxd5 {[%clk 0:02:45.2]}
15... Bxd5 {[%clk 0:02:43.3]} 16. e4 {[%clk 0:02:30.9]} 16... Nxe4 {[%clk
0:02:35.4]} 17. Re1 {[%clk 0:02:20.4]} 17... Nf6 {[%clk 0:02:30.7]} 18. Bg5
{[%clk 0:02:17.5]} 18... h6 {[%clk 0:02:24.8]} 19. Bh4 {[%clk 0:02:13]} 19...
Bxf3 {[%clk 0:02:05.1]} 20. Qxf3 {[%clk 0:02:09.8]} 20... Qc7 {[%clk 0:02:06]}
21. Qf5 {[%clk 0:01:58.7]} 21... Bxh2+ {[%clk 0:01:46.1]} 22. Kh1 {[%clk
0:01:57.9]} 22... Qf4 {[%clk 0:01:27]} 23. Qh3 {[%clk 0:01:26.7]} 23... Ng4
{[%clk 0:01:09]} 24. Re4 {[%clk 0:01:20.2]} 24... Nf2+ {[%clk 0:00:50.5]} 25.
Bxf2 {[%clk 0:01:17.8]} 25... Qxf2 {[%clk 0:00:51.4]} 26. Kxh2 {[%clk
0:01:07.1]} 26... Rad8 {[%clk 0:00:47.3]} 27. Bc4+ {[%clk 0:00:50.6]} 27... Kh8
{[%clk 0:00:45.4]} 28. Rf1 {[%clk 0:00:49.3]} 28... Qd2 {[%clk 0:00:41.3]} 29.
Rxf8+ {[%clk 0:00:38.8]} 29... Rxf8 {[%clk 0:00:42.2]} 30. Qg3 {[%clk
0:00:29.1]} 30... Qd1 {[%clk 0:00:34.8]} 31. Re5 {[%clk 0:00:24.7]} 31... Qd4
{[%clk 0:00:24.2]} 32. Bd3 {[%clk 0:00:21.2]} 32... c4 {[%clk 0:00:17.9]} 33.
Bc2 {[%clk 0:00:20.6]} 33... Qd6 {[%clk 0:00:16.2]} 34. Re3 {[%clk 0:00:17]}
34... Rf4 {[%clk 0:00:15.3]} 35. Re8+ {[%clk 0:00:15.2]} 35... Rf8 {[%clk
0:00:12.7]} 36. Rxf8+ {[%clk 0:00:15.5]} 36... Qxf8 {[%clk 0:00:13.6]} 37. Qg4
{[%clk 0:00:13.7]} 37... Qd6+ {[%clk 0:00:13.3]} 38. Kh3 {[%clk 0:00:12.2]}
38... Qd8 {[%clk 0:00:11.1]} 39. Qe4 {[%clk 0:00:11.8]} 39... Qd7+ {[%clk
0:00:10.9]} 40. g4 {[%clk 0:00:12.2]} 40... Kg8 {[%clk 0:00:10]} 41. Qh7+ {[%clk
0:00:11.9]} 41... Kf8 {[%clk 0:00:09.9]} 42. Qf5+ {[%clk 0:00:12]} 42... Qxf5
{[%clk 0:00:10.2]} 43. Bxf5 {[%clk 0:00:12.9]} 43... Ke7 {[%clk 0:00:11]} 44.
Kg3 {[%clk 0:00:13.3]} 44... Kd6 {[%clk 0:00:11.2]} 45. Kf4 {[%clk 0:00:12.1]}
45... Kc5 {[%clk 0:00:12.1]} 46. Ke4 {[%clk 0:00:11.8]} 46... b5 {[%clk
0:00:12.1]} 47. Bd7 {[%clk 0:00:11.3]} 47... a5 {[%clk 0:00:10.6]} 48. Be8
{[%clk 0:00:09.9]} 48... b4 {[%clk 0:00:09.8]} 49. Bf7 {[%clk 0:00:08.6]} 49...
a4 {[%clk 0:00:09.8]} 50. Be6 {[%clk 0:00:08.5]} 50... a3 {[%clk 0:00:08.9]} 51.
bxa3 {[%clk 0:00:07.8]} 51... bxa3 {[%clk 0:00:09.1]} 52. Bf7 {[%clk 0:00:06.5]}
52... Kb4 {[%clk 0:00:08.8]} 53. Kd4 {[%clk 0:00:05.9]} 53... c3 {[%clk
0:00:08.8]} 54. Kd3 {[%clk 0:00:06.3]} 54... g5 {[%clk 0:00:09.1]} 55. Kc2
{[%clk 0:00:05.9]} 55... h5 {[%clk 0:00:07.5]} 56. Bxh5 {[%clk 0:00:06.3]} 56...
Kc5 {[%clk 0:00:07]} 57. Kxc3 {[%clk 0:00:06.6]} 57... Kd6 {[%clk 0:00:07.9]}
58. Kb3 {[%clk 0:00:07]} 58... Ke5 {[%clk 0:00:08.8]} 59. Kxa3 {[%clk
0:00:07.9]} 1-0

[Event "*** Titled Tuesday Blitz"]
[Site "Chess.com"]
[Date "2020.12.29"]
[Round "4"]
[White "atalz0"]
[Black "Siniauski"]
[Result "1-0"]
[WhiteElo "2376"]
[BlackElo "2578"]
[TimeControl "180+1"]
[EndTime "10:40:08 PST"]
[Termination "atalz0 won by checkmate"]

1. d4 {[%clk 0:03:00.9]} 1... Nf6 {[%clk 0:02:59.7]} 2. c4 {[%clk 0:03:00.7]}
2... e6 {[%clk 0:03:00.4]} 3. Nc3 {[%clk 0:03:00.3]} 3... Bb4 {[%clk 0:03:00.4]}
4. Qc2 {[%clk 0:03:00.5]} 4... O-O {[%clk 0:02:57.1]} 5. e4 {[%clk 0:03:00.5]}
5... d5 {[%clk 0:02:52.3]} 6. e5 {[%clk 0:03:00.6]} 6... Ne4 {[%clk 0:02:51.7]}
7. Bd3 {[%clk 0:03:01.3]} 7... f5 {[%clk 0:02:46.5]} 8. exf6 {[%clk 0:03:00.5]}
8... Qxf6 {[%clk 0:02:40.4]} 9. Nf3 {[%clk 0:02:59.1]} 9... Nc6 {[%clk
0:02:34.6]} 10. Bxe4 {[%clk 0:02:50.4]} 10... dxe4 {[%clk 0:02:30.5]} 11. Qxe4
{[%clk 0:02:51]} 11... Bd7 {[%clk 0:01:47.9]} 12. O-O {[%clk 0:02:48.8]} 12...
Ne7 {[%clk 0:01:46.3]} 13. Bg5 {[%clk 0:02:44]} 13... Qf5 {[%clk 0:01:33.9]} 14.
Rae1 {[%clk 0:01:58.7]} 14... Qxe4 {[%clk 0:00:45.7]} 15. Rxe4 {[%clk
0:01:59.6]} 15... Nf5 {[%clk 0:00:45.7]} 16. Ne5 {[%clk 0:01:51]} 16... Be8
{[%clk 0:00:45.8]} 17. a3 {[%clk 0:01:45.6]} 17... Bxc3 {[%clk 0:00:45.5]} 18.
bxc3 {[%clk 0:01:46.5]} 18... h6 {[%clk 0:00:46.1]} 19. Bd2 {[%clk 0:01:44.3]}
19... Nd6 {[%clk 0:00:40.4]} 20. Re2 {[%clk 0:01:39.9]} 20... c5 {[%clk
0:00:33.8]} 21. dxc5 {[%clk 0:01:26.2]} 21... Nf5 {[%clk 0:00:33.5]} 22. Nd3
{[%clk 0:01:18.5]} 22... Bf7 {[%clk 0:00:30.8]} 23. Bf4 {[%clk 0:01:08.9]} 23...
Rac8 {[%clk 0:00:28.2]} 24. Rb1 {[%clk 0:01:02.4]} 24... Rfd8 {[%clk 0:00:20.5]}
25. Ne5 {[%clk 0:00:58.8]} 25... Rxc5 {[%clk 0:00:17.1]} 26. Nxf7 {[%clk
0:00:52.8]} 26... Kxf7 {[%clk 0:00:18]} 27. Rxb7+ {[%clk 0:00:52.3]} 27... Kf6
{[%clk 0:00:17.9]} 28. g3 {[%clk 0:00:41.5]} 28... g5 {[%clk 0:00:16.1]} 29. Be3
{[%clk 0:00:39.3]} 29... Rxc4 {[%clk 0:00:15.8]} 30. Rxa7 {[%clk 0:00:33.4]}
30... Rxc3 {[%clk 0:00:15.7]} 31. Ra6 {[%clk 0:00:32.1]} 31... Rd1+ {[%clk
0:00:07]} 32. Kg2 {[%clk 0:00:31.9]} 32... Nxe3+ {[%clk 0:00:07.2]} 33. Rxe3
{[%clk 0:00:30.3]} 33... Rxe3 {[%clk 0:00:07.8]} 34. fxe3 {[%clk 0:00:30.7]}
34... Ke5 {[%clk 0:00:08.7]} 35. Ra4 {[%clk 0:00:29.2]} 35... Ra1 {[%clk
0:00:07.6]} 36. Kf3 {[%clk 0:00:24.7]} 36... Ra2 {[%clk 0:00:07.2]} 37. h4
{[%clk 0:00:23.9]} 37... Kf5 {[%clk 0:00:07.4]} 38. h5 {[%clk 0:00:22]} 38...
g4+ {[%clk 0:00:03.8]} 39. Rxg4 {[%clk 0:00:20.5]} 39... Rxa3 {[%clk 0:00:04.4]}
40. Rg6 {[%clk 0:00:19.3]} 40... Ra8 {[%clk 0:00:04.6]} 41. g4+ {[%clk
0:00:18.3]} 41... Ke5 {[%clk 0:00:04.6]} 42. Rxh6 {[%clk 0:00:18.6]} 42... Rf8+
{[%clk 0:00:05.2]} 43. Kg3 {[%clk 0:00:18.2]} 43... Rg8 {[%clk 0:00:04.6]} 44.
Rg6 {[%clk 0:00:15.8]} 44... Rh8 {[%clk 0:00:03.1]} 45. Kh4 {[%clk 0:00:14.4]}
45... Kd6 {[%clk 0:00:03.3]} 46. Kg5 {[%clk 0:00:14.6]} 46... Ke7 {[%clk
0:00:03.9]} 47. Rg7+ {[%clk 0:00:13.7]} 47... Kf8 {[%clk 0:00:04.5]} 48. Kg6
{[%clk 0:00:13.7]} 48... e5 {[%clk 0:00:02.5]} 49. h6 {[%clk 0:00:13.4]} 49...
e4 {[%clk 0:00:01.8]} 50. g5 {[%clk 0:00:10.8]} 50... Ke8 {[%clk 0:00:01.2]} 51.
h7 {[%clk 0:00:10.7]} 51... Kf8 {[%clk 0:00:02.1]} 52. Rf7+ {[%clk 0:00:09.9]}
52... Ke8 {[%clk 0:00:02.3]} 53. Kg7 {[%clk 0:00:09.6]} 53... Rxh7+ {[%clk
0:00:02.8]} 54. Kxh7 {[%clk 0:00:10]} 54... Kxf7 {[%clk 0:00:03.7]} 55. g6+
{[%clk 0:00:10.7]} 55... Kf6 {[%clk 0:00:04]} 56. g7 {[%clk 0:00:11.6]} 56...
Ke6 {[%clk 0:00:04.8]} 57. g8=Q+ {[%clk 0:00:12.5]} 57... Kf5 {[%clk 0:00:05.7]}
58. Qg3 {[%clk 0:00:12.2]} 58... Ke6 {[%clk 0:00:05.9]} 59. Qf4 {[%clk
0:00:12.5]} 59... Kd5 {[%clk 0:00:06.8]} 60. Qf5+ {[%clk 0:00:12.7]} 60... Kc6
{[%clk 0:00:07.7]} 61. Qxe4+ {[%clk 0:00:13.2]} 61... Kb5 {[%clk 0:00:08.6]} 62.
Qd4 {[%clk 0:00:13.6]} 62... Ka5 {[%clk 0:00:08.3]} 63. e4 {[%clk 0:00:14.1]}
63... Ka6 {[%clk 0:00:09.2]} 64. e5 {[%clk 0:00:14.7]} 64... Kb5 {[%clk
0:00:10.1]} 65. e6 {[%clk 0:00:15.3]} 65... Kc6 {[%clk 0:00:11]} 66. e7 {[%clk
0:00:15.9]} 66... Kb7 {[%clk 0:00:11.9]} 67. e8=Q {[%clk 0:00:16]} 67... Ka6
{[%clk 0:00:12.8]} 68. Qc8+ {[%clk 0:00:15.7]} 68... Kb5 {[%clk 0:00:13.7]} 69.
Qdd7+ {[%clk 0:00:15.3]} 69... Ka5 {[%clk 0:00:13.5]} 70. Qdb7 {[%clk
0:00:15.8]} 70... Ka4 {[%clk 0:00:13.9]} 71. Qca8# {[%clk 0:00:15.7]} 1-0